[Event "Titled Tuesday Blitz June 6 Early 2023"]
[White "Camilla_Lee"]
[Black "Zenin, Dmitry"]
[BlackFideId "4127897"]
[WhiteElo "2527"]
[BlackElo "2215"]
[Result "0-1"]
[Round "4"]
[TimeControl "180+2"]
[Date "2023.06.06"]
[WhiteClock "0:00:07"]
[BlackClock "0:00:17"]
[Board "136"]

1. e4 {[%clk 0:03:00]}  e5 {[%clk 0:02:59]} 2. Nf3 {[%clk 0:03:00]}  Nc6 {[%clk 0:02:59]} 3. Nc3 {[%clk 0:02:59]}  Nf6 {[%clk 0:02:59]} 4. d4 {[%clk 0:02:59]}  Bb4 {[%clk 0:02:58]} 5. d5 {[%clk 0:02:58]}  Ne7 {[%clk 0:02:58]} 6. Nxe5 {[%clk 0:02:55]}  Nxe4 {[%clk 0:02:55]} 7. Qd4 {[%clk 0:02:52]}  Bxc3+ {[%clk 0:02:55]} 8. bxc3 {[%clk 0:02:51]}  Nd6 {[%clk 0:02:55]} 9. c4 {[%clk 0:02:50]}  Ndf5 {[%clk 0:02:53]} 10. Qg4 {[%clk 0:02:46]}  d6 {[%clk 0:02:52]} 11. Nf3 {[%clk 0:02:42]}  O-O {[%clk 0:02:47]} 12. Bd3 {[%clk 0:02:39]}  c6 {[%clk 0:02:24]} 13. Bb2 {[%clk 0:02:18]}  cxd5 {[%clk 0:02:22]} 14. O-O {[%clk 0:01:48]}  dxc4 {[%clk 0:02:20]} 15. Bxc4 {[%clk 0:01:48]}  Ng6 {[%clk 0:02:14]} 16. Qe4 {[%clk 0:01:24]}  Re8 {[%clk 0:02:05]} 17. Qd3 {[%clk 0:01:16]}  Nf4 {[%clk 0:01:37]} 18. Qd2 {[%clk 0:01:09]}  Ne6 {[%clk 0:01:23]} 19. Rad1 {[%clk 0:01:06]}  Qc7 {[%clk 0:01:14]} 20. Bd3 {[%clk 0:01:01]}  Nc5 {[%clk 0:01:10]} 21. Qc3 {[%clk 0:00:33]}  f6 {[%clk 0:01:07]} 22. Bc4+ {[%clk 0:00:32]}  Kh8 {[%clk 0:01:01]} 23. Bd5 {[%clk 0:00:32]}  Qb6 {[%clk 0:00:43]} 24. Rfe1 {[%clk 0:00:30]}  Bd7 {[%clk 0:00:42]} 25. Nh4 {[%clk 0:00:21]}  Na4 {[%clk 0:00:33]} 26. Qh3 {[%clk 0:00:10]}  Nxb2 {[%clk 0:00:26]} 27. Nxf5 {[%clk 0:00:08]}  Nxd1 {[%clk 0:00:24]} 28. Rxd1 {[%clk 0:00:08]}  Qa5 {[%clk 0:00:20]} 29. Be4 {[%clk 0:00:07]}  Rxe4 {[%clk 0:00:18]} 30. g4 {[%clk 0:00:07]}  Re1+ {[%clk 0:00:17]} 0-1


[Site "https://www.chess.com"]

[Event "Titled Tuesday Blitz June 6 Early 2023"]
[White "Tosic, Srecko"]
[Black "Srdanovic, Jovana"]
[WhiteFideId "924563"]
[BlackFideId "954810"]
[WhiteElo "2253"]
[BlackElo "2155"]
[Result "1-0"]
[Round "4"]
[TimeControl "180+2"]
[Date "2023.06.06"]
[WhiteClock "0:00:49"]
[BlackClock "0:01:05"]
[Board "138"]

1. e4 {[%clk 0:03:00]}  c5 {[%clk 0:02:59]} 2. Nf3 {[%clk 0:03:00]}  e6 {[%clk 0:02:59]} 3. d4 {[%clk 0:03:01]}  cxd4 {[%clk 0:02:59]} 4. Nxd4 {[%clk 0:03:02]}  a6 {[%clk 0:02:58]} 5. Nc3 {[%clk 0:03:02]}  b5 {[%clk 0:02:58]} 6. g3 {[%clk 0:03:03]}  Bb7 {[%clk 0:02:58]} 7. Bg2 {[%clk 0:03:03]}  d6 {[%clk 0:02:58]} 8. O-O {[%clk 0:03:02]}  Nd7 {[%clk 0:02:59]} 9. Re1 {[%clk 0:03:02]}  Ngf6 {[%clk 0:02:59]} 10. a4 {[%clk 0:02:54]}  b4 {[%clk 0:02:58]} 11. Nd5 {[%clk 0:02:53]}  Be7 {[%clk 0:02:50]} 12. Nxb4 {[%clk 0:02:39]}  O-O {[%clk 0:02:46]} 13. Nbc6 {[%clk 0:02:38]}  Bxc6 {[%clk 0:02:46]} 14. Nxc6 {[%clk 0:02:39]}  Qe8 {[%clk 0:02:46]} 15. e5 {[%clk 0:02:31]}  dxe5 {[%clk 0:02:16]} 16. Nxe7+ {[%clk 0:02:24]}  Qxe7 {[%clk 0:02:17]} 17. Bxa8 {[%clk 0:02:22]}  Rxa8 {[%clk 0:02:18]} 18. b3 {[%clk 0:02:02]}  Rc8 {[%clk 0:02:14]} 19. Ba3 {[%clk 0:02:00]}  Qd8 {[%clk 0:02:14]} 20. c4 {[%clk 0:01:59]}  e4 {[%clk 0:02:14]} 21. Bd6 {[%clk 0:01:53]}  Qb6 {[%clk 0:02:13]} 22. a5 {[%clk 0:01:43]}  Qc6 {[%clk 0:01:59]} 23. Rc1 {[%clk 0:01:41]}  Rd8 {[%clk 0:01:47]} 24. Qd4 {[%clk 0:01:08]}  h6 {[%clk 0:01:24]} 25. Red1 {[%clk 0:01:05]}  Re8 {[%clk 0:01:20]} 26. b4 {[%clk 0:01:03]}  e5 {[%clk 0:01:16]} 27. Qa7 {[%clk 0:00:56]}  Rc8 {[%clk 0:01:07]} 28. b5 {[%clk 0:00:53]}  Qa8 {[%clk 0:01:05]} 29. Qxa8 {[%clk 0:00:51]}  Rxa8 {[%clk 0:01:06]} 30. b6 {[%clk 0:00:51]}  Ne8 {[%clk 0:01:06]} 31. c5 {[%clk 0:00:49]}  Rc8 {[%clk 0:01:05]} 32. c6 {[%clk 0:00:49]} 1-0


[Site "https://www.chess.com"]

[Event "Titled Tuesday Blitz June 6 Early 2023"]
[White "Reprintsev, Alexander"]
[Black "Goswami, Vedant"]
[WhiteFideId "14100541"]
[BlackFideId "5003725"]
[WhiteElo "2229"]
[BlackElo "2011"]
[Result "1-0"]
[Round "4"]
[TimeControl "180+2"]
[Date "2023.06.06"]
[WhiteClock "0:01:09"]
[BlackClock "0:00:08"]
[Board "139"]

1. e4 {[%clk 0:03:00]}  e5 {[%clk 0:02:58]} 2. Nf3 {[%clk 0:03:00]}  Nc6 {[%clk 0:02:58]} 3. Bc4 {[%clk 0:03:00]}  Be7 {[%clk 0:02:54]} 4. c3 {[%clk 0:02:58]}  Nf6 {[%clk 0:02:54]} 5. d3 {[%clk 0:02:56]}  d6 {[%clk 0:02:53]} 6. a4 {[%clk 0:02:56]}  O-O {[%clk 0:02:50]} 7. O-O {[%clk 0:02:55]}  Be6 {[%clk 0:02:46]} 8. Nbd2 {[%clk 0:02:50]}  Qd7 {[%clk 0:02:43]} 9. Re1 {[%clk 0:02:50]}  Rfe8 {[%clk 0:02:42]} 10. b4 {[%clk 0:02:49]}  Rad8 {[%clk 0:02:32]} 11. Qb3 {[%clk 0:02:49]}  d5 {[%clk 0:02:24]} 12. exd5 {[%clk 0:02:48]}  Bxd5 {[%clk 0:02:22]} 13. Bxd5 {[%clk 0:02:46]}  Qxd5 {[%clk 0:02:18]} 14. b5 {[%clk 0:02:40]}  Na5 {[%clk 0:01:48]} 15. Qxd5 {[%clk 0:02:40]}  Nxd5 {[%clk 0:01:48]} 16. Bb2 {[%clk 0:02:23]}  f6 {[%clk 0:01:41]} 17. g3 {[%clk 0:02:05]}  Bf8 {[%clk 0:01:17]} 18. d4 {[%clk 0:01:55]}  exd4 {[%clk 0:01:16]} 19. Nxd4 {[%clk 0:01:56]}  Kf7 {[%clk 0:01:03]} 20. Kg2 {[%clk 0:01:56]}  Bc5 {[%clk 0:01:01]} 21. N4b3 {[%clk 0:01:51]}  Bb6 {[%clk 0:00:44]} 22. Rxe8 {[%clk 0:01:50]}  Rxe8 {[%clk 0:00:39]} 23. c4 {[%clk 0:01:43]}  Nxb3 {[%clk 0:00:32]} 24. Nxb3 {[%clk 0:01:43]}  Re2 {[%clk 0:00:31]} 25. Bd4 {[%clk 0:01:40]}  Bxd4 {[%clk 0:00:19]} 26. Nxd4 {[%clk 0:01:40]}  Rd2 {[%clk 0:00:20]} 27. Nb3 {[%clk 0:01:27]}  Rd3 {[%clk 0:00:17]} 28. Nc5 {[%clk 0:01:24]}  Rc3 {[%clk 0:00:13]} 29. Nxb7 {[%clk 0:01:22]}  Rxc4 {[%clk 0:00:12]} 30. Nd8+ {[%clk 0:01:23]}  Ke8 {[%clk 0:00:11]} 31. Nc6 {[%clk 0:01:24]}  Rc2 {[%clk 0:00:10]} 32. Nxa7 {[%clk 0:01:22]}  Ne3+ {[%clk 0:00:10]} 33. Kf3 {[%clk 0:01:22]}  Nc4 {[%clk 0:00:10]} 34. Nc6 {[%clk 0:01:12]}  Kd7 {[%clk 0:00:08]} 35. Rd1+ {[%clk 0:01:10]}  Ke6 {[%clk 0:00:08]} 36. Nd4+ {[%clk 0:01:09]} 1-0


[Site "https://www.chess.com"]

[Event "Titled Tuesday Blitz June 6 Early 2023"]
[White "Da Silva, Lindolfo Luiz"]
[Black "Petukhov, Dmitry"]
[WhiteFideId "2106558"]
[BlackFideId "4142748"]
[WhiteElo "2355"]
[BlackElo "2311"]
[Result "1-0"]
[Round "4"]
[TimeControl "180+2"]
[Date "2023.06.06"]
[WhiteClock "0:00:29"]
[BlackClock "0:00:07"]
[Board "140"]

1. d4 {[%clk 0:02:58]}  Nf6 {[%clk 0:02:59]} 2. g3 {[%clk 0:02:58]}  h5 {[%clk 0:02:59]} 3. Nf3 {[%clk 0:02:46]}  d5 {[%clk 0:02:54]} 4. c4 {[%clk 0:02:43]}  c6 {[%clk 0:02:50]} 5. Bg2 {[%clk 0:02:41]}  Bf5 {[%clk 0:02:47]} 6. Nc3 {[%clk 0:02:39]}  Ne4 {[%clk 0:02:46]} 7. Qb3 {[%clk 0:02:34]}  Nxc3 {[%clk 0:02:45]} 8. bxc3 {[%clk 0:02:31]}  Qb6 {[%clk 0:02:34]} 9. c5 {[%clk 0:02:29]}  Qxb3 {[%clk 0:02:32]} 10. axb3 {[%clk 0:02:29]}  Be4 {[%clk 0:02:29]} 11. b4 {[%clk 0:02:22]}  Nd7 {[%clk 0:02:23]} 12. Bf4 {[%clk 0:02:21]}  f6 {[%clk 0:02:18]} 13. O-O {[%clk 0:02:16]}  g5 {[%clk 0:02:18]} 14. Bd2 {[%clk 0:02:15]}  e5 {[%clk 0:01:55]} 15. Ne1 {[%clk 0:01:48]}  Bxg2 {[%clk 0:01:46]} 16. Nxg2 {[%clk 0:01:49]}  a6 {[%clk 0:01:43]} 17. Ne3 {[%clk 0:01:47]}  Kf7 {[%clk 0:01:37]} 18. f3 {[%clk 0:01:47]}  Kg6 {[%clk 0:01:34]} 19. g4 {[%clk 0:01:47]}  hxg4 {[%clk 0:01:31]} 20. fxg4 {[%clk 0:01:48]}  Rh3 {[%clk 0:01:27]} 21. Kg2 {[%clk 0:01:48]}  Rh7 {[%clk 0:01:11]} 22. Nf5 {[%clk 0:01:41]}  Be7 {[%clk 0:01:09]} 23. h3 {[%clk 0:01:39]}  Rah8 {[%clk 0:01:08]} 24. Rf3 {[%clk 0:01:39]}  Bd8 {[%clk 0:01:06]} 25. Raf1 {[%clk 0:01:38]}  e4 {[%clk 0:00:58]} 26. Rg3 {[%clk 0:01:32]}  Bc7 {[%clk 0:00:59]} 27. Nd6 {[%clk 0:01:32]}  Bxd6 {[%clk 0:00:56]} 28. cxd6 {[%clk 0:01:33]}  Rd8 {[%clk 0:00:46]} 29. Be1 {[%clk 0:01:21]}  Nb6 {[%clk 0:00:45]} 30. Kh2 {[%clk 0:01:14]}  Rxd6 {[%clk 0:00:45]} 31. Rg2 {[%clk 0:01:05]}  Rd8 {[%clk 0:00:42]} 32. Bg3 {[%clk 0:01:02]}  Rdh8 {[%clk 0:00:40]} 33. Rgf2 {[%clk 0:01:02]}  Rxh3+ {[%clk 0:00:40]} 34. Kg2 {[%clk 0:01:02]}  Nd7 {[%clk 0:00:39]} 35. e3 {[%clk 0:00:58]}  R3h7 {[%clk 0:00:38]} 36. Re1 {[%clk 0:00:55]}  Nb6 {[%clk 0:00:38]} 37. Ref1 {[%clk 0:00:55]}  Rf7 {[%clk 0:00:38]} 38. Be5 {[%clk 0:00:54]}  Rhf8 {[%clk 0:00:37]} 39. Bd6 {[%clk 0:00:53]}  Re8 {[%clk 0:00:37]} 40. Be5 {[%clk 0:00:53]}  Re6 {[%clk 0:00:36]} 41. Bg3 {[%clk 0:00:50]}  Nc4 {[%clk 0:00:37]} 42. Re1 {[%clk 0:00:50]}  f5 {[%clk 0:00:34]} 43. gxf5+ {[%clk 0:00:49]}  Rxf5 {[%clk 0:00:34]} 44. Rxf5 {[%clk 0:00:49]}  Kxf5 {[%clk 0:00:34]} 45. Rf1+ {[%clk 0:00:44]}  Kg4 {[%clk 0:00:32]} 46. Bf2 {[%clk 0:00:42]}  Rf6 {[%clk 0:00:32]} 47. Rg1 {[%clk 0:00:43]}  Rf3 {[%clk 0:00:32]} 48. Kf1+ {[%clk 0:00:43]}  Kf5 {[%clk 0:00:32]} 49. Ke2 {[%clk 0:00:44]}  Rh3 {[%clk 0:00:31]} 50. Rf1 {[%clk 0:00:43]}  g4 {[%clk 0:00:30]} 51. Rg1 {[%clk 0:00:43]}  Kg5 {[%clk 0:00:29]} 52. Bg3 {[%clk 0:00:44]}  Kf5 {[%clk 0:00:25]} 53. Bf2 {[%clk 0:00:43]}  Rf3 {[%clk 0:00:23]} 54. Rg2 {[%clk 0:00:43]}  Kg5 {[%clk 0:00:22]} 55. Rg1 {[%clk 0:00:42]}  Nd6 {[%clk 0:00:22]} 56. Bg3 {[%clk 0:00:42]}  Nf5 {[%clk 0:00:23]} 57. Bf4+ {[%clk 0:00:42]}  Rxf4 {[%clk 0:00:23]} 58. exf4+ {[%clk 0:00:43]}  Kxf4 {[%clk 0:00:24]} 59. Rf1+ {[%clk 0:00:43]}  Kg5 {[%clk 0:00:23]} 60. Rg1 {[%clk 0:00:41]}  g3 {[%clk 0:00:21]} 61. Rh1 {[%clk 0:00:42]}  Kg4 {[%clk 0:00:19]} 62. Rh8 {[%clk 0:00:40]}  e3 {[%clk 0:00:18]} 63. Rf8 {[%clk 0:00:38]}  g2 {[%clk 0:00:18]} 64. Rg8+ {[%clk 0:00:36]}  Kh3 {[%clk 0:00:17]} 65. Kf3 {[%clk 0:00:35]}  e2 {[%clk 0:00:10]} 66. Kxe2 {[%clk 0:00:35]}  Kh2 {[%clk 0:00:09]} 67. Kf2 {[%clk 0:00:35]}  Kh3 {[%clk 0:00:04]} 68. Rxg2 {[%clk 0:00:34]}  Nd6 {[%clk 0:00:05]} 69. Rg7 {[%clk 0:00:33]}  Ne4+ {[%clk 0:00:06]} 70. Ke3 {[%clk 0:00:33]}  Nxc3 {[%clk 0:00:06]} 71. Rxb7 {[%clk 0:00:33]}  Kg4 {[%clk 0:00:04]} 72. Rb6 {[%clk 0:00:34]}  Na2 {[%clk 0:00:05]} 73. Kd3 {[%clk 0:00:27]}  Kf5 {[%clk 0:00:04]} 74. Kc2 {[%clk 0:00:27]}  Ke4 {[%clk 0:00:01]} 75. Kb3 {[%clk 0:00:27]}  Kxd4 {[%clk 0:00:01]} 76. Kxa2 {[%clk 0:00:27]}  c5 {[%clk 0:00:01]} 77. bxc5 {[%clk 0:00:26]}  Kxc5 {[%clk 0:00:02]} 78. Rxa6 {[%clk 0:00:27]}  d4 {[%clk 0:00:03]} 79. Kb2 {[%clk 0:00:27]}  d3 {[%clk 0:00:04]} 80. Kc3 {[%clk 0:00:27]}  Kb5 {[%clk 0:00:04]} 81. Rd6 {[%clk 0:00:27]}  Kc5 {[%clk 0:00:05]} 82. Rxd3 {[%clk 0:00:27]}  Kb5 {[%clk 0:00:06]} 83. Rd4 {[%clk 0:00:28]}  Kc5 {[%clk 0:00:05]} 84. Rc4+ {[%clk 0:00:28]}  Kd5 {[%clk 0:00:05]} 85. Kd3 {[%clk 0:00:28]}  Kd6 {[%clk 0:00:05]} 86. Ke4 {[%clk 0:00:28]}  Ke6 {[%clk 0:00:06]} 87. Rd4 {[%clk 0:00:29]}  Ke7 {[%clk 0:00:05]} 88. Kf5 {[%clk 0:00:29]}  Kf7 {[%clk 0:00:06]} 89. Re4 {[%clk 0:00:29]}  Kf8 {[%clk 0:00:07]} 90. Kg6 {[%clk 0:00:29]}  Kg8 {[%clk 0:00:07]} 91. Re8# {[%clk 0:00:29]} 1-0


[Site "https://www.chess.com"]

[Event "Titled Tuesday Blitz June 6 Early 2023"]
[White "Flynn, Jacob"]
[Black "Shtompel, Yuriy"]
[WhiteFideId "2509393"]
[BlackFideId "14168278"]
[WhiteElo "2053"]
[BlackElo "1844"]
[Result "1-0"]
[Round "4"]
[TimeControl "180+2"]
[Date "2023.06.06"]
[WhiteClock "0:01:29"]
[BlackClock "0:00:22"]
[Board "142"]

1. d4 {[%clk 0:03:00]}  Nf6 {[%clk 0:02:53]} 2. Nf3 {[%clk 0:02:59]}  g6 {[%clk 0:02:54]} 3. g3 {[%clk 0:02:55]}  Bg7 {[%clk 0:02:54]} 4. Bg2 {[%clk 0:02:56]}  O-O {[%clk 0:02:55]} 5. O-O {[%clk 0:02:56]}  d6 {[%clk 0:02:56]} 6. c4 {[%clk 0:02:54]}  Nbd7 {[%clk 0:02:54]} 7. Nc3 {[%clk 0:02:55]}  e5 {[%clk 0:02:52]} 8. e4 {[%clk 0:02:55]}  a5 {[%clk 0:02:48]} 9. h3 {[%clk 0:02:52]}  h6 {[%clk 0:02:48]} 10. Be3 {[%clk 0:02:49]}  Re8 {[%clk 0:02:43]} 11. Re1 {[%clk 0:02:43]}  c6 {[%clk 0:02:40]} 12. Qc2 {[%clk 0:02:36]}  Qc7 {[%clk 0:02:32]} 13. Rad1 {[%clk 0:02:35]}  Nf8 {[%clk 0:02:05]} 14. d5 {[%clk 0:02:34]}  c5 {[%clk 0:01:43]} 15. Qd2 {[%clk 0:02:10]}  Kh7 {[%clk 0:01:38]} 16. b3 {[%clk 0:02:10]}  g5 {[%clk 0:01:31]} 17. Nh2 {[%clk 0:02:10]}  Ng6 {[%clk 0:01:29]} 18. Rb1 {[%clk 0:02:07]}  Bd7 {[%clk 0:01:28]} 19. Nf1 {[%clk 0:02:04]}  Rf8 {[%clk 0:01:21]} 20. Qc2 {[%clk 0:02:01]}  Nh5 {[%clk 0:01:05]} 21. Bd2 {[%clk 0:01:57]}  Qc8 {[%clk 0:00:57]} 22. Kh2 {[%clk 0:01:56]}  g4 {[%clk 0:00:41]} 23. h4 {[%clk 0:01:52]}  Nhf4 {[%clk 0:00:39]} 24. Ne3 {[%clk 0:01:47]}  h5 {[%clk 0:00:34]} 25. Bf1 {[%clk 0:01:44]}  Kh8 {[%clk 0:00:24]} 26. Nf5 {[%clk 0:01:39]}  Qd8 {[%clk 0:00:22]} 27. Kg1 {[%clk 0:01:30]}  Nxh4 {[%clk 0:00:21]} 28. Nxh4 {[%clk 0:01:29]}  Qxh4 {[%clk 0:00:22]} 29. gxh4 {[%clk 0:01:29]} 1-0


[Site "https://www.chess.com"]

[Event "Titled Tuesday Blitz June 6 Early 2023"]
[White "Gabdushev, Ruslan"]
[Black "Tanmay Jain"]
[WhiteFideId "4137833"]
[BlackFideId "45015481"]
[WhiteElo "2233"]
[BlackElo "2032"]
[Result "1-0"]
[Round "4"]
[TimeControl "180+2"]
[Date "2023.06.06"]
[WhiteClock "0:01:42"]
[BlackClock "0:01:04"]
[Board "145"]

1. b3 {[%clk 0:02:59]}  c6 {[%clk 0:02:59]} 2. Bb2 {[%clk 0:02:59]}  d5 {[%clk 0:03:00]} 3. e3 {[%clk 0:02:59]}  Nf6 {[%clk 0:03:00]} 4. f4 {[%clk 0:02:58]}  e6 {[%clk 0:03:00]} 5. Nf3 {[%clk 0:02:59]}  Be7 {[%clk 0:03:00]} 6. Be2 {[%clk 0:02:58]}  b6 {[%clk 0:03:01]} 7. O-O {[%clk 0:02:58]}  Bb7 {[%clk 0:03:01]} 8. Qe1 {[%clk 0:02:56]}  Nbd7 {[%clk 0:03:02]} 9. Qg3 {[%clk 0:02:55]}  Qc7 {[%clk 0:02:47]} 10. d3 {[%clk 0:02:54]}  Rg8 {[%clk 0:02:32]} 11. Ne5 {[%clk 0:02:49]}  Nf8 {[%clk 0:02:01]} 12. Nd2 {[%clk 0:02:45]}  Ng6 {[%clk 0:02:01]} 13. Nxg6 {[%clk 0:02:35]}  hxg6 {[%clk 0:01:59]} 14. Nf3 {[%clk 0:02:35]}  O-O-O {[%clk 0:01:58]} 15. Ne5 {[%clk 0:02:34]}  Bd6 {[%clk 0:01:59]} 16. c4 {[%clk 0:02:26]}  Rgf8 {[%clk 0:01:51]} 17. Rac1 {[%clk 0:02:24]}  Nd7 {[%clk 0:01:46]} 18. cxd5 {[%clk 0:02:12]}  exd5 {[%clk 0:01:41]} 19. Bg4 {[%clk 0:02:09]}  f5 {[%clk 0:01:35]} 20. Bf3 {[%clk 0:02:08]}  Bxe5 {[%clk 0:01:29]} 21. fxe5 {[%clk 0:02:06]}  Rde8 {[%clk 0:01:29]} 22. d4 {[%clk 0:01:59]}  Re6 {[%clk 0:01:25]} 23. Bxd5 {[%clk 0:01:57]}  cxd5 {[%clk 0:01:14]} 24. Rxc7+ {[%clk 0:01:56]}  Kxc7 {[%clk 0:01:15]} 25. Ba3 {[%clk 0:01:49]}  Rc8 {[%clk 0:01:04]} 26. Bd6+ {[%clk 0:01:46]}  Kd8 {[%clk 0:01:05]} 27. Qh4+ {[%clk 0:01:42]}  Ke8 {[%clk 0:01:04]} 28. g4 {[%clk 0:01:42]} 1-0


[Site "https://www.chess.com"]

[Event "Titled Tuesday Blitz June 6 Early 2023"]
[White "Ai, Evan"]
[Black "Tokman, Ariel"]
[WhiteFideId "2094770"]
[BlackFideId "117420"]
[WhiteElo "1963"]
[BlackElo "2263"]
[Result "0-1"]
[Round "4"]
[TimeControl "180+2"]
[Date "2023.06.06"]
[WhiteClock "0:00:01"]
[BlackClock "0:00:07"]
[Board "146"]

1. e4 {[%clk 0:02:58]}  d5 {[%clk 0:03:00]} 2. exd5 {[%clk 0:02:58]}  Qxd5 {[%clk 0:03:01]} 3. Nc3 {[%clk 0:02:59]}  Qd6 {[%clk 0:03:01]} 4. d4 {[%clk 0:02:59]}  c6 {[%clk 0:03:01]} 5. Nf3 {[%clk 0:02:59]}  Bg4 {[%clk 0:03:00]} 6. Bc4 {[%clk 0:02:59]}  e6 {[%clk 0:03:01]} 7. Be3 {[%clk 0:02:44]}  Nf6 {[%clk 0:03:00]} 8. h3 {[%clk 0:02:40]}  Bh5 {[%clk 0:02:59]} 9. g4 {[%clk 0:02:33]}  Bg6 {[%clk 0:02:58]} 10. Ne5 {[%clk 0:02:34]}  Nfd7 {[%clk 0:02:53]} 11. Bf4 {[%clk 0:02:32]}  Nxe5 {[%clk 0:02:51]} 12. Bxe5 {[%clk 0:02:33]}  Qb4 {[%clk 0:02:46]} 13. Bb3 {[%clk 0:02:30]}  Nd7 {[%clk 0:02:46]} 14. a3 {[%clk 0:02:28]}  Qa5 {[%clk 0:02:44]} 15. Bg3 {[%clk 0:02:28]}  h5 {[%clk 0:02:35]} 16. Qe2 {[%clk 0:02:16]}  O-O-O {[%clk 0:02:09]} 17. O-O-O {[%clk 0:02:14]}  Bxa3 {[%clk 0:01:54]} 18. Na4 {[%clk 0:02:14]}  Be7 {[%clk 0:01:33]} 19. Kb1 {[%clk 0:01:59]}  Qb4 {[%clk 0:01:20]} 20. Qe3 {[%clk 0:01:51]}  Nb6 {[%clk 0:01:12]} 21. Nxb6+ {[%clk 0:01:49]}  Qxb6 {[%clk 0:01:08]} 22. Bxe6+ {[%clk 0:01:48]}  fxe6 {[%clk 0:00:54]} 23. Qxe6+ {[%clk 0:01:49]}  Rd7 {[%clk 0:00:53]} 24. Qxg6 {[%clk 0:01:49]}  Bf6 {[%clk 0:00:23]} 25. c3 {[%clk 0:01:44]}  Qb5 {[%clk 0:00:10]} 26. Rhe1 {[%clk 0:01:35]}  a5 {[%clk 0:00:09]} 27. Re8+ {[%clk 0:01:34]}  Rxe8 {[%clk 0:00:09]} 28. Qxe8+ {[%clk 0:01:35]}  Rd8 {[%clk 0:00:08]} 29. Qe6+ {[%clk 0:01:35]}  Rd7 {[%clk 0:00:08]} 30. Qe8+ {[%clk 0:01:23]}  Rd8 {[%clk 0:00:07]} 31. Qf7 {[%clk 0:01:14]}  Rd7 {[%clk 0:00:06]} 32. Qxh5 {[%clk 0:01:14]}  Qxh5 {[%clk 0:00:06]} 33. gxh5 {[%clk 0:01:15]}  Rd5 {[%clk 0:00:06]} 34. Re1 {[%clk 0:01:04]}  Rxh5 {[%clk 0:00:05]} 35. Be5 {[%clk 0:01:05]}  Rxh3 {[%clk 0:00:04]} 36. f4 {[%clk 0:01:02]}  Rf3 {[%clk 0:00:03]} 37. Rg1 {[%clk 0:01:01]}  Kd7 {[%clk 0:00:02]} 38. Kc2 {[%clk 0:00:56]}  b5 {[%clk 0:00:02]} 39. Rg2 {[%clk 0:00:53]}  Ke6 {[%clk 0:00:02]} 40. Kd2 {[%clk 0:00:53]}  a4 {[%clk 0:00:03]} 41. Ke2 {[%clk 0:00:53]}  Rh3 {[%clk 0:00:03]} 42. Rf2 {[%clk 0:00:51]}  Rh1 {[%clk 0:00:03]} 43. f5+ {[%clk 0:00:51]}  Kd5 {[%clk 0:00:04]} 44. Bxf6 {[%clk 0:00:47]}  gxf6 {[%clk 0:00:05]} 45. Kd2 {[%clk 0:00:48]}  Rb1 {[%clk 0:00:05]} 46. Kc2 {[%clk 0:00:48]}  Rg1 {[%clk 0:00:05]} 47. Kd3 {[%clk 0:00:43]}  Rg3+ {[%clk 0:00:05]} 48. Ke2 {[%clk 0:00:41]}  Kc4 {[%clk 0:00:05]} 49. Kd2 {[%clk 0:00:34]}  Kb3 {[%clk 0:00:05]} 50. Re2 {[%clk 0:00:09]}  Kxb2 {[%clk 0:00:04]} 51. Re6 {[%clk 0:00:09]}  Rxc3 {[%clk 0:00:03]} 52. Rxf6 {[%clk 0:00:09]}  a3 {[%clk 0:00:04]} 53. Rf8 {[%clk 0:00:07]}  b4 {[%clk 0:00:04]} 54. Ra8 {[%clk 0:00:06]}  a2 {[%clk 0:00:05]} 55. f6 {[%clk 0:00:06]}  a1=Q {[%clk 0:00:05]} 56. Rxa1 {[%clk 0:00:06]}  Kxa1 {[%clk 0:00:06]} 57. Ke2 {[%clk 0:00:02]}  Rc2+ {[%clk 0:00:06]} 58. Ke3 {[%clk 0:00:02]}  Rc1 {[%clk 0:00:06]} 59. Ke2 {[%clk 0:00:01]}  b3 {[%clk 0:00:06]} 60. f7 {[%clk 0:00:02]}  b2 {[%clk 0:00:06]} 61. f8=Q {[%clk 0:00:01]}  Rc2+ {[%clk 0:00:05]} 62. Kd3 {[%clk 0:00:01]}  b1=Q {[%clk 0:00:06]} 63. Qa3+ {[%clk 0:00:01]}  Ra2+ {[%clk 0:00:06]} 64. Kc4 {[%clk 0:00:01]}  Rxa3 {[%clk 0:00:07]} 0-1


[Site "https://www.chess.com"]